fUST/lending_fUST_20250908
["ID","MTS","AMOUNT","RATE_DAILY","PERIOD"]
[384132754,1757268648090,-480.0,0.00013698,2]
[384132755,1757268648100,-766.71,0.00013698,2]
[384132756,1757268648109,-480.0,0.00013698,2]
[384132757,1757268648119,-10757.15,0.00013698,2]
[384132758,1757268648129,-480.0,0.00013698,2]
[384132759,1757268648138,-480.0,0.00013698,2]
[384132760,1757268648149,-1243.44,0.00013698,2]
[384132761,1757268648158,-1598.54,0.00013698,2]
[384132762,1757268648168,-359.17,0.00013698,2]
[384132763,1757268648178,-480.0,0.00013698,2]
[384132764,1757268648188,-1502.66,0.00013698,2]
[384132765,1757268648198,-1900.01,0.00013698,2]
[384132766,1757268648208,-480.0,0.00013698,2]
[384132767,1757268648219,-480.0,0.00013698,2]
[384132768,1757268648232,-480.0,0.00013698,2]
[384132769,1757268648242,-480.0,0.00013698,2]
[384132770,1757268648252,-480.0,0.00013698,2]
[384132771,1757268648262,-944.14,0.00013698,2]
[384132772,1757268648273,-652.81,0.00013698,2]
[384132773,1757268648283,-2512.54,0.00013698,2]
[384132774,1757268648293,-480.0,0.00013698,2]
[384132775,1757268648305,-1041.29,0.00013698,2]
[384132776,1757268648315,-480.0,0.00013698,2]
[384132777,1757268648325,-1543.81,0.00013698,2]
[384132778,1757268648336,-480.0,0.00013698,2]
[384132779,1757268648346,-1645.57,0.00013698,2]
[384132780,1757268648355,-480.0,0.00013698,2]
[384132781,1757268648365,-634.85,0.00013698,2]
[384132782,1757268648375,-6417.95,0.00013698,2]
[384132783,1757268648385,-537.8,0.00013698,2]
[384132784,1757268648396,-480.0,0.00013698,2]
[384132785,1757268648406,-480.0,0.00013698,2]
[384132786,1757268648415,-480.0,0.00013698,2]
[384132787,1757268648425,-715.77,0.00013698,2]
[384132788,1757268648435,-737.1,0.00013698,2]
[384132789,1757268648445,-480.0,0.00013698,2]
[384132790,1757268648455,-2765.21,0.00013698,2]
[384132791,1757268648465,-2171.81,0.00013698,2]
[384132792,1757268648475,-432.4855129,0.00013698,2]
[384132793,1757268648484,-560.41,0.00013698,2]
[384132794,1757268648494,-500.0,0.00013698,2]
[384132795,1757268648503,-151.351657,0.00013699,2]
[384132796,1757268648513,-151.0,0.00013699,2]
[384132797,1757268648522,-151.0,0.00013699,2]
[384132798,1757268648531,-162.26816,0.00013699,2]
[384132799,1757268648540,-151.0,0.00013699,2]
[384132800,1757268648551,-745.184097,0.00013699,2]
[384132801,1757268648560,-151.0,0.00013699,2]
[384132802,1757268648569,-151.0,0.00013699,2]
[384132803,1757268648579,-2183.31810187,0.00013745,2]
[384132804,1757268648588,-151.0,0.00013745,2]
[384132805,1757268648598,-160.0,0.00013772,2]
[384132806,1757268648608,-160.0,0.00013772,2]
[384132808,1757268648617,-417.15472785,0.00013772,2]
[384132810,1757268648626,-846.64878038,0.00013772,2]
[384132812,1757268648636,-203.24090201,0.00013772,2]
[384132813,1757268648645,-233.01044003,0.00013772,2]
[384132814,1757268648654,-160.0,0.00013772,2]
[384132815,1757268648664,-217.60587337,0.00013772,2]
[384132816,1757268648673,-160.0,0.00013772,2]
[384132817,1757268648684,-530.64473063,0.00013772,2]
[384132818,1757268648693,-160.0,0.00013772,2]
[384132820,1757268648703,-160.0,0.00013772,2]
[384132822,1757268648712,-2264.10087164,0.000138,2]
[384132823,1757268648722,-2076.13363027,0.00013855,2]
[384132825,1757268648733,-376.17497168,0.00013872,2]
[384132826,1757268648742,-168.0,0.00013881,2]
[384132828,1757268648751,-7159.9989464,0.00013947,2]
[384132830,1757268648761,-300.0,0.00013971,2]
[384132832,1757268648771,-300.0,0.00013971,2]
[384132834,1757268648781,-300.0,0.00013971,2]
[384132836,1757268648791,-300.0,0.00013971,2]
[384132838,1757268648800,-300.0,0.00013971,2]
[384132840,1757268648810,-300.0,0.00013971,2]
[384132842,1757268648819,-300.0,0.00013971,2]
[384132844,1757268648828,-300.0,0.00013971,2]
[384132846,1757268648838,-300.0,0.00013971,2]
[384132848,1757268648848,-300.0,0.00013971,2]
[384132850,1757268648857,-300.0,0.00013971,2]
[384132852,1757268648867,-300.0,0.00013971,2]
[384132854,1757268648876,-300.0,0.00013971,2]
[384132856,1757268648886,-300.0,0.00013971,2]
[384132858,1757268648895,-300.0,0.00013971,2]
[384132859,1757268648905,-600.0,0.00013971,2]
[384132862,1757268648915,-151.0,0.00013971,2]
[384132864,1757268648925,-151.0,0.00013971,2]
[384132865,1757268648934,-387.81511295,0.00013972,2]
[384132868,1757268648944,-480.0,0.00013972,2]
[384132869,1757268648953,-482.64,0.00013972,2]
[384132871,1757268648963,-480.0,0.00013972,2]
[384132873,1757268648974,-480.0,0.00013972,2]
[384132875,1757268648984,-480.0,0.00013972,2]
[384132877,1757268648993,-482.53308073,0.00013972,2]
[384132879,1757268649003,-483.29408813,0.00013972,2]
[384132881,1757268649012,-480.0,0.00013972,2]
[384132883,1757268649021,-587.91,0.00013972,2]
[384132885,1757268649030,-480.0,0.00013972,2]
[384132887,1757268649040,-480.0,0.00013972,2]
[384132889,1757268649049,-513.7,0.00013972,2]
[384132891,1757268649059,-480.0,0.00013972,2]
[384132893,1757268649069,-480.0,0.00013972,2]
[384132895,1757268649078,-512.36,0.00013972,2]
[384132897,1757268649087,-437.10896823,0.00013972,2]
[384132898,1757268649097,-480.0,0.00013972,2]
[384132900,1757268649106,-480.0,0.00013972,2]
[384132902,1757268649115,-480.0,0.00013972,2]
[384132904,1757268649125,-480.0,0.00013972,2]
[384132906,1757268649135,-2216.68,0.00013972,2]
[384132908,1757268649144,-480.0,0.00013972,2]
[384132910,1757268649153,-896.45,0.00013972,2]
[384132912,1757268649163,-480.0,0.00013972,2]
[384132914,1757268649172,-464.82710566,0.00013972,2]
[384132916,1757268649182,-480.0,0.00013972,2]
[384132918,1757268649191,-480.0,0.00013972,2]
[384132920,1757268649201,-574.1,0.00013972,2]
[384132922,1757268649210,-480.0,0.00013972,2]
[384132923,1757268649219,-655.05,0.00013972,2]
[384132925,1757268649230,-482.3,0.00013972,2]
[384132927,1757268649240,-480.0,0.00013972,2]
[384132929,1757268649249,-480.0,0.00013972,2]
[384132931,1757268649259,-480.0,0.00013972,2]
[384132933,1757268649268,-159.94285149,0.00013972,2]
[384132935,1757268649278,-638.43,0.00013972,2]
[384132937,1757268649288,-777.16,0.00013972,2]
[384132939,1757268649298,-261.6,0.00013972,2]
[384132940,1757268649307,-543.33,0.00013972,2]
[384132941,1757268649316,-480.0,0.00013972,2]
[384132942,1757268649326,-855.67,0.00013972,2]
[384132943,1757268649336,-480.0,0.00013972,2]
[384132944,1757268649346,-500.0,0.00013972,2]
[384132945,1757268649355,-480.0,0.00013972,2]
[384132946,1757268649364,-480.0,0.00013972,2]
[384132947,1757268649374,-614.1,0.00013972,2]
[384132948,1757268649384,-151.0,0.00013972,2]
[384132949,1757268649393,-151.0,0.00013972,2]
[384132950,1757268649403,-151.0,0.00013972,2]
[384132951,1757268649412,-151.0,0.00013972,2]
[384132952,1757268649421,-151.0,0.00013972,2]
[384132953,1757268649431,-151.0,0.00013972,2]
[384132954,1757268649440,-622.52,0.00013972,2]
[384132955,1757268649450,-798.29,0.00013972,2]
[384132956,1757268649459,-196.40320907,0.00013972,2]
[384132957,1757268649468,-480.0,0.00013972,2]
[384132958,1757268649478,-480.0,0.00013972,2]
[384132959,1757268649487,-151.0,0.00013972,2]
[384132960,1757268649495,-151.0,0.00013972,2]
[384132961,1757268649504,-512.09,0.00013972,2]
[384132962,1757268649514,-480.0,0.00013972,2]
[384132963,1757268649523,-619.23,0.00013972,2]
[384132964,1757268649532,-484.29,0.00013972,2]
[384132965,1757268649542,-480.0,0.00013972,2]
[384132966,1757268649551,-480.0,0.00013972,2]
[384132967,1757268649560,-480.0,0.00013972,2]
[384132968,1757268649571,-480.0,0.00013972,2]
[384132969,1757268649580,-480.0,0.00013972,2]
[384132970,1757268649590,-157.0,0.00013972,2]
[384132972,1757268649599,-157.0,0.00013972,2]
[384132974,1757268649608,-480.0,0.00013972,2]
[384132976,1757268649617,-305.82478668,0.00013972,2]
[384132978,1757268649626,-157.0,0.00013972,2]
[384132980,1757268649636,-157.0,0.00013972,2]
[384132982,1757268649646,-480.0,0.00013972,2]
[384132984,1757268649655,-192.654803,0.00013972,2]
[384132986,1757268649664,-480.0,0.00013972,2]
[384132988,1757268649674,-480.0,0.00013972,2]
[384132990,1757268649684,-530.04,0.00013972,2]
[384132992,1757268649693,-480.0,0.00013972,2]
[384132994,1757268649703,-798.84,0.00013972,2]
[384132996,1757268649712,-480.0,0.00013972,2]
[384132998,1757268649722,-857.83,0.00013972,2]
[384133000,1757268649731,-155.28,0.00013972,2]
[384133002,1757268649740,-480.0,0.00013972,2]
[384133004,1757268649750,-558.92,0.00013972,2]
[384133006,1757268649761,-516.18,0.00013972,2]
[384133008,1757268649770,-480.0,0.00013972,2]
[384133010,1757268649779,-480.0,0.00013972,2]
[384133012,1757268649789,-666.75,0.00013972,2]
[384133014,1757268649799,-480.0,0.00013972,2]
[384133026,1757268649891,-998.49,0.00013972,2]
[384133028,1757268649911,-667.54,0.00013972,2]
[384133030,1757268649921,-571.35,0.00013972,2]
[384133032,1757268649930,-480.0,0.00013972,2]
[384133034,1757268649939,-704.61,0.00013972,2]
[384133036,1757268649949,-480.0,0.00013972,2]
[384133038,1757268649958,-151.0,0.00013972,2]
[384133040,1757268649967,-151.0,0.00013972,2]
[384133042,1757268649976,-151.0,0.00013972,2]
[384133044,1757268649985,-480.0,0.00013972,2]
[384133046,1757268649994,-1225.67,0.00013972,2]
[384133048,1757268650004,-480.0,0.00013972,2]
[384133050,1757268650014,-480.0,0.00013972,2]
[384133052,1757268650024,-157.0,0.00013972,2]
[384133054,1757268650034,-5590.71,0.00013972,2]
[384133056,1757268650043,-480.0,0.00013972,2]
[384133058,1757268650052,-588.67,0.00013972,2]
[384133060,1757268650062,-973.16,0.00013972,2]
[384133062,1757268650072,-480.0,0.00013972,2]
[384133064,1757268650082,-531.48,0.00013972,2]
[384133066,1757268650093,-480.0,0.00013972,2]
[384133068,1757268650102,-227.84848448,0.00013972,2]
[384133070,1757268650115,-509.27,0.00013972,2]
[384133072,1757268650124,-480.0,0.00013972,2]
[384133074,1757268650133,-2654.72,0.00013972,2]
[384133076,1757268650142,-895.19,0.00013972,2]
[384133078,1757268650152,-480.0,0.00013972,2]
[384133080,1757268650162,-157.0,0.00013972,2]
[384133082,1757268650171,-157.0,0.00013972,2]
[384133084,1757268650181,-157.0,0.00013972,2]
[384133086,1757268650191,-218.53838148,0.00013972,2]
[384133088,1757268650200,-500.0,0.00013972,2]
[384133090,1757268650209,-480.0,0.00013972,2]
[384133092,1757268650221,-1067.92,0.00013972,2]
[384133094,1757268650232,-480.0,0.00013972,2]
[384133096,1757268650241,-480.0,0.00013972,2]
[384133098,1757268650251,-558.14,0.00013972,2]
[384133100,1757268650260,-527.46,0.00013972,2]
[384133102,1757268650270,-579.98,0.00013972,2]
[384133104,1757268650280,-916.29,0.00013972,2]
[384133106,1757268650289,-3712.13,0.00013972,2]
[384133108,1757268650300,-480.0,0.00013972,2]
[384133110,1757268650309,-480.0,0.00013972,2]
[384133112,1757268650318,-2170.05,0.00013972,2]
[384133114,1757268650327,-151.0,0.00013972,2]
[384133116,1757268650337,-151.0,0.00013972,2]
[384133118,1757268650346,-151.0,0.00013972,2]
[384133120,1757268650355,-151.0,0.00013972,2]
[384133121,1757268650364,-233.993288,0.00013972,2]
[384133123,1757268650374,-873.72,0.00013972,2]
[384133126,1757268650383,-28627.95,0.00013972,2]
[384133127,1757268650393,-999.94,0.00013972,2]
[384133129,1757268650402,-546.73,0.00013972,2]
[384133130,1757268650411,-480.0,0.00013972,2]
[384133132,1757268650421,-480.0,0.00013972,2]
[384133134,1757268650430,-1160.42,0.00013972,2]
[384133136,1757268650440,-1364.0,0.00013972,2]
[384133138,1757268650449,-570.92,0.00013972,2]
[384133140,1757268650459,-929.01,0.00013972,2]
[384133142,1757268650468,-151.0,0.00013972,2]
[384133144,1757268650477,-151.0,0.00013972,2]
[384133146,1757268650487,-151.0,0.00013972,2]
[384133148,1757268650496,-151.0,0.00013972,2]
[384133150,1757268650505,-151.0,0.00013972,2]
[384133152,1757268650514,-151.0,0.00013972,2]
[384133154,1757268650523,-480.0,0.00013972,2]
[384133156,1757268650533,-151.0,0.00013972,2]
[384133158,1757268650543,-232.910724,0.00013972,2]
[384133160,1757268650552,-480.0,0.00013972,2]
[384133162,1757268650561,-991.18,0.00013972,2]
[384133164,1757268650570,-480.0,0.00013972,2]
[384133166,1757268650579,-480.0,0.00013972,2]
[384133168,1757268650589,-3690.15,0.00013972,2]
[384133170,1757268650598,-480.0,0.00013972,2]
[384133171,1757268650608,-3401.26,0.00013972,2]
[384133173,1757268650617,-543.97,0.00013972,2]
[384133175,1757268650626,-805.91,0.00013972,2]
[384133177,1757268650635,-996.25,0.00013972,2]
[384133179,1757268650644,-3857.4,0.00013972,2]
[384133181,1757268650654,-480.0,0.00013972,2]
[384133183,1757268650663,-2249.04,0.00013972,2]
[384133185,1757268650672,-2362.42,0.00013972,2]
[384133187,1757268650682,-621.03,0.00013972,2]
[384133189,1757268650691,-596.6,0.00013972,2]
[384133191,1757268650700,-3371.35,0.00013972,2]
[384133193,1757268650709,-480.0,0.00013972,2]
[384133195,1757268650719,-480.0,0.00013972,2]
[384133197,1757268650728,-480.0,0.00013972,2]
[384133199,1757268650737,-913.33,0.00013972,2]
[384133201,1757268650746,-913.0,0.00013972,2]
[384133203,1757268650755,-2334.08,0.00013972,2]
[384133205,1757268650764,-480.0,0.00013972,2]
[384133207,1757268650774,-480.0,0.00013972,2]
[384133208,1757268650782,-766.71,0.00013972,2]
[384133210,1757268650792,-480.0,0.00013972,2]
[384133212,1757268650801,-10757.15,0.00013972,2]
[384133214,1757268650811,-480.0,0.00013972,2]
[384133216,1757268650821,-1243.44,0.00013972,2]
[384133218,1757268650830,-1598.54,0.00013972,2]
[384133220,1757268650839,-480.0,0.00013972,2]
[384133222,1757268650849,-1502.66,0.00013972,2]
[384133224,1757268650858,-1900.01,0.00013972,2]
[384133226,1757268650867,-480.0,0.00013972,2]
[384133228,1757268650876,-627.04086087,0.00013972,2]
[384133230,1757268650885,-480.0,0.00013972,2]
[384133232,1757268650895,-944.14,0.00013972,2]
[384133234,1757268650904,-652.81,0.00013972,2]
[384133236,1757268650914,-2512.54,0.00013972,2]
[384133238,1757268650924,-369.45458263,0.00013972,2]
[384133240,1757268650933,-1041.29,0.00013972,2]
[384133242,1757268650942,-1543.81,0.00013972,2]
[384133244,1757268650952,-480.0,0.00013972,2]
[384133246,1757268650961,-1645.57,0.00013972,2]
[384133248,1757268650971,-157.0,0.00013972,2]
[384133250,1757268650980,-480.0,0.00013972,2]
[384133252,1757268650990,-157.0,0.00013972,2]
[384133254,1757268651001,-634.85,0.00013972,2]
[384133256,1757268651010,-6417.95,0.00013972,2]
[384133258,1757268651019,-537.8,0.00013972,2]
[384133260,1757268651028,-480.0,0.00013972,2]
[384133262,1757268651038,-189.57905706,0.00013972,2]
[384133264,1757268651047,-296.0,0.00013972,2]
[384133266,1757268651057,-289.16553519,0.00013972,2]
[384133268,1757268651066,-151.0,0.00013972,2]
[384133270,1757268651077,-151.0,0.00013972,2]
[384133272,1757268651086,-151.0,0.00013972,2]
[384133274,1757268651096,-480.0,0.00013972,2]
[384133276,1757268651106,-715.77,0.00013972,2]
[384133278,1757268651115,-737.1,0.00013972,2]
[384133280,1757268651125,-480.0,0.00013972,2]
[384133282,1757268651134,-2765.21,0.00013972,2]
[384133284,1757268651146,-2171.81,0.00013972,2]
[384133286,1757268651155,-500.0,0.00013972,2]
[384133288,1757268651165,-500.0,0.00013984,2]
[384133290,1757268651175,-14473.38436728,0.0001399,2]
[384133292,1757268651184,-168.0,0.00013993,2]
[384133293,1757268651193,-1376.19552736,0.00014023,2]
[384133295,1757268651203,-3000.0,0.0001404,2]
[384133297,1757268651213,-474.01,0.00014146,2]
[384133299,1757268651222,-10574.65704845,0.00014179,2]
[384133301,1757268651231,-151.0,0.000142,2]
[384133303,1757268651241,-322607.922334,0.0001421,2]
[384133305,1757268651250,-168.0,0.00014211,2]
[384133307,1757268651260,-500.0,0.00014246,2]
[384133309,1757268651271,-196.69649965,0.00014246,2]
[384133311,1757268651281,-171.19506388,0.00014246,2]
[384133313,1757268651291,-290.913793,0.00014246,2]
[384133315,1757268651300,-157.0,0.00014246,2]
[384133317,1757268651310,-265.28,0.00014246,2]
[384133319,1757268651319,-157.0,0.00014246,2]
[384133321,1757268651328,-157.0,0.00014246,2]
[384133323,1757268651338,-157.0,0.00014246,2]
[384133325,1757268651347,-500.0,0.00014246,2]
[384133327,1757268651356,-157.0,0.00014246,2]
[384133329,1757268651366,-157.0,0.00014246,2]
[384133331,1757268651375,-771.0,0.00014246,2]
[384133333,1757268651385,-482.64,0.00014246,2]
[384133335,1757268651393,-480.0,0.00014246,2]
[384133337,1757268651403,-480.0,0.00014246,2]
[384133339,1757268651412,-480.0,0.00014246,2]
[384133341,1757268651421,-480.0,0.00014246,2]
[384133342,1757268651431,-587.91,0.00014246,2]
[384133344,1757268651441,-480.0,0.00014246,2]
[384133346,1757268651450,-480.0,0.00014246,2]
[384133347,1757268651462,-513.7,0.00014246,2]
[384133348,1757268651474,-480.0,0.00014246,2]
[384133349,1757268651483,-480.0,0.00014246,2]
[384133350,1757268651492,-512.36,0.00014246,2]
[384133351,1757268651501,-480.0,0.00014246,2]
[384133352,1757268651510,-480.0,0.00014246,2]
[384133353,1757268651519,-480.0,0.00014246,2]
[384133354,1757268651529,-2216.68,0.00014246,2]
[384133355,1757268651538,-508.66,0.00014246,2]
[384133356,1757268651548,-896.45,0.00014246,2]
[384133357,1757268651558,-480.0,0.00014246,2]
[384133358,1757268651567,-574.1,0.00014246,2]
[384133359,1757268651578,-480.0,0.00014246,2]
[384133360,1757268651588,-655.05,0.00014246,2]
[384133361,1757268651598,-480.0,0.00014246,2]
[384133362,1757268651607,-480.0,0.00014246,2]
[384133363,1757268651617,-638.43,0.00014246,2]
[384133364,1757268651626,-777.16,0.00014246,2]
[384133365,1757268651635,-480.0,0.00014246,2]
[384133366,1757268651645,-855.67,0.00014246,2]
[384133367,1757268651655,-480.0,0.00014246,2]
[384133368,1757268651664,-14.42330171,0.00014246,2]
[384133370,1757268686356,10000.01,0.00013148,2]
[384133371,1757268686378,3770.7632843,0.00013148,2]
[384133372,1757268701207,376.19659508,0.0001356,2]
[384133374,1757268769831,5853.05012062,0.00012921,2]
[384133375,1757268769853,10000.01,0.00012921,2]
[384133376,1757268769876,10000.01,0.00012921,2]
[384133377,1757268769898,659.21834868,0.00012921,2]
[384133378,1757268781952,193.69,0.00012329,2]
[384133379,1757268783239,300.0,0.00013559,2]
[384133381,1757268792451,161.41,0.00012329,2]
[384133382,1757268799714,300.0,0.0001356,2]
[384133383,1757268802937,807.08,0.00012329,2]
[384133384,1757268807627,300.0,0.0001356,2]
[384133385,1757268824458,300.0,0.0001356,2]
[384133386,1757268832803,300.0,0.0001356,2]
[384133389,1757268848363,300.0,0.0001356,2]
[384133390,1757268857459,300.0,0.0001356,2]
[384133391,1757268872553,300.0,0.0001356,2]
[384133392,1757268880580,1451.52895277,0.0001356,2]
[384133393,1757268895996,4327.08269855,0.0001356,2]
[384133394,1757268896020,1291.42806996,0.0001356,2]
[384133396,1757269057222,-300.0,0.00013696,2]
[384133398,1757269087305,-300.0,0.00013696,2]
[384133399,1757269127373,-4481.45588758,0.00013697,2]
[384133400,1757269127419,-10000.01,0.00013697,2]
[384133401,1757269137265,-10000.01,0.00013697,2]
[384133402,1757269137401,-10000.01,0.00013697,2]
[384133403,1757269141334,1278.23,0.00012329,2]
[384133404,1757269147314,-300.0,0.00013696,2]
[384133405,1757269147348,-9400.01,0.00013697,2]
[384133406,1757269149242,300.0,0.00013559,2]
[384133407,1757269152077,1065.19,0.00012329,2]
[384133408,1757269157400,342.62216088,0.0001356,2]
[384133409,1757269162954,1194.94,0.00012329,2]
[384133410,1757269165899,2414.44576566,0.0001356,2]
[384133411,1757269173434,995.79,0.00012329,2]
[384133412,1757269173958,2402.48682812,0.0001356,2]
[384133413,1757269183873,829.82,0.00012329,2]
[384133414,1757269194351,691.52,0.00012329,2]
[384133415,1757269204785,576.26,0.00012329,2]
[384133416,1757269215425,480.22,0.00012329,2]
[384133417,1757269226226,71.90524534,0.00012329,2]
[384133418,1757269226249,328.27475466,0.00012329,2]
[384133419,1757269236688,333.49,0.00012329,2]
[384133420,1757269247376,277.91,0.00012329,2]
[384133421,1757269257808,231.59,0.00012329,2]
[384133422,1757269268239,192.99,0.00012329,2]
[384133423,1757269278903,160.82,0.00012329,2]
[384133424,1757269289433,804.15,0.00012329,2]
[384133425,1757269289471,7670.78524534,0.00012716,2]
[384133426,1757269289496,2012.85098046,0.00012716,2]
[384133427,1757269328085,666.0,0.00012716,2]
[384133435,1757269552681,-151.0,0.0001369,2]
[384133436,1757269552710,-300.0,0.00013696,2]
[384133437,1757269552738,-2979.50588758,0.00013697,2]
[384133438,1757269552949,-3138.99822484,0.00013697,2]
[384133439,1757269552978,-500.0,0.00013697,2]
[384133440,1757269553008,-500.0,0.00013697,2]
[384133441,1757269553036,-500.0,0.00013697,2]
[384133442,1757269553064,-350.52822909,0.00013697,2]
[384133443,1757269553113,-20.95709214,0.00013697,2]
[384133444,1757269553143,-500.0,0.00013697,2]
[384133445,1757269553171,-500.0,0.00013697,2]
[384133446,1757269553201,-500.0,0.00013697,2]
[384133447,1757269553231,-500.0,0.00013697,2]
[384133448,1757269553398,-500.0,0.00013697,2]
[384133449,1757269553430,-500.0,0.00013697,2]
[384133450,1757269553460,-500.0,0.00013697,2]
[384133451,1757269553491,-500.0,0.00013697,2]
[384133452,1757269553519,-500.0,0.00013697,2]
[384133453,1757269553549,-458.09581572,0.00013697,2]
[384133454,1757269553758,-41.90418428,0.00013697,2]
[384133455,1757269553786,-500.0,0.00013697,2]
[384133456,1757269553816,-500.0,0.00013697,2]
[384133457,1757269553845,-500.0,0.00013697,2]
[384133458,1757269553877,-500.0,0.00013697,2]
[384133459,1757269553907,-500.0,0.00013697,2]
[384133460,1757269553936,-500.0,0.00013697,2]
[384133461,1757269553968,-500.0,0.00013697,2]
[384133462,1757269553998,-500.0,0.00013697,2]
[384133463,1757269554029,-500.0,0.00013697,2]
[384133464,1757269554058,-199.00834946,0.00013697,2]
[384133465,1757269554087,-18.18493252,0.00013697,2]
[384133467,1757269562681,-481.81506748,0.00013697,2]
[384133468,1757269562714,-500.0,0.00013697,2]
[384133469,1757269562748,-500.0,0.00013697,2]
[384133470,1757269562779,-500.0,0.00013697,2]
[384133471,1757269562810,-500.0,0.00013697,2]
[384133472,1757269562841,-500.0,0.00013697,2]
[384133473,1757269562873,-500.0,0.00013697,2]
[384133474,1757269562906,-500.0,0.00013697,2]
[384133475,1757269562939,-500.0,0.00013697,2]
[384133476,1757269562969,-500.0,0.00013697,2]
[384133477,1757269563325,-500.0,0.00013697,2]
[384133478,1757269563358,-500.0,0.00013697,2]
[384133479,1757269563391,-500.0,0.00013697,2]
[384133480,1757269563423,-500.0,0.00013697,2]
[384133481,1757269563456,-500.0,0.00013697,2]
[384133482,1757269563489,-500.0,0.00013697,2]
[384133483,1757269563523,-500.0,0.00013697,2]
[384133484,1757269563555,-500.0,0.00013697,2]
[384133485,1757269563586,-157.52932422,0.00013697,2]
[384133486,1757269563619,-500.0,0.00013697,2]
[384133487,1757269563652,-305.87694484,0.00013697,2]
[384133488,1757269572951,-300.0,0.00013696,2]
[384133489,1757269572983,-73.19746188,0.00013697,2]
[384133490,1757269573014,-500.0,0.00013697,2]
[384133491,1757269573043,-500.0,0.00013697,2]
[384133492,1757269573073,-500.0,0.00013697,2]
[384133493,1757269573101,-500.0,0.00013697,2]
[384133494,1757269573130,-500.0,0.00013697,2]
[384133495,1757269573159,-500.0,0.00013697,2]
[384133496,1757269573189,-500.0,0.00013697,2]
[384133497,1757269573218,-500.0,0.00013697,2]
[384133498,1757269573247,-373.44535332,0.00013697,2]
[384133499,1757269573278,-6.7243696,0.00013697,2]
[384133500,1757269582751,-493.2756304,0.00013697,2]
[384133501,1757269582779,-500.0,0.00013697,2]
[384133502,1757269582807,-500.0,0.00013697,2]
[384133503,1757269582835,-500.0,0.00013697,2]
[384133504,1757269582864,-500.0,0.00013697,2]
[384133505,1757269582895,-500.0,0.00013697,2]
[384133506,1757269582923,-500.0,0.00013697,2]
[384133507,1757269582951,-500.0,0.00013697,2]
[384133508,1757269582981,-500.0,0.00013697,2]
[384133509,1757269583010,-500.0,0.00013697,2]
[384133511,1757269632765,-300.0,0.00013696,2]
[384133512,1757269632795,-500.0,0.00013697,2]
[384133513,1757269632824,-500.0,0.00013697,2]
[384133514,1757269632853,-500.0,0.00013697,2]
[384133515,1757269632882,-500.0,0.00013697,2]
[384133516,1757269632916,-500.0,0.00013697,2]
[384133517,1757269632947,-500.0,0.00013697,2]
[384133518,1757269632976,-500.0,0.00013697,2]
[384133519,1757269633005,-500.0,0.00013697,2]
[384133520,1757269633034,-531.77401626,0.00013697,2]